[Event "Late-Titled-Tuesday-Blitz-March-19-2024"]
[Site "Chess.com"]
[Date "2024.03.19"]
[Round "9"]
[White "tolimachess"]
[Black "SuanFernandes"]
[Result "1-0"]
[WhiteElo "2460"]
[BlackElo "2321"]
[TimeControl "180+1"]
[EndTime "15:44:40 PDT"]
[Termination "tolimachess won on time"]

1. e4 {[%clk 0:02:53.7]} 1... c6 {[%clk 0:02:58.2]} 2. d4 {[%clk 0:02:52.9]}
2... d5 {[%clk 0:02:59.1]} 3. exd5 {[%clk 0:02:53.5]} 3... cxd5 {[%clk 0:03:00]}
4. Bd3 {[%clk 0:02:53.8]} 4... Nc6 {[%clk 0:02:59.8]} 5. Nf3 {[%clk 0:02:54.1]}
5... Nf6 {[%clk 0:02:59.3]} 6. c3 {[%clk 0:02:54.7]} 6... Bg4 {[%clk 0:02:59.7]}
7. O-O {[%clk 0:02:55.2]} 7... e6 {[%clk 0:03:00]} 8. Bf4 {[%clk 0:02:53.7]}
8... Bd6 {[%clk 0:02:59.9]} 9. Bxd6 {[%clk 0:02:53.1]} 9... Qxd6 {[%clk
0:03:00.8]} 10. Nbd2 {[%clk 0:02:52.4]} 10... O-O {[%clk 0:03:01.3]} 11. Re1
{[%clk 0:02:52.8]} 11... a6 {[%clk 0:02:58.5]} 12. h3 {[%clk 0:02:52.6]} 12...
Bh5 {[%clk 0:02:58.3]} 13. Qc2 {[%clk 0:02:51.2]} 13... Bg6 {[%clk 0:02:57.9]}
14. Ne5 {[%clk 0:02:50.3]} 14... Rac8 {[%clk 0:02:57.4]} 15. Bxg6 {[%clk
0:02:45.8]} 15... hxg6 {[%clk 0:02:56.6]} 16. Qd3 {[%clk 0:02:43.7]} 16... b5
{[%clk 0:02:56.2]} 17. f4 {[%clk 0:02:42.6]} 17... Na5 {[%clk 0:02:55.4]} 18. a4
{[%clk 0:02:40.6]} 18... Nc4 {[%clk 0:02:54.6]} 19. axb5 {[%clk 0:02:39.5]}
19... axb5 {[%clk 0:02:55.5]} 20. Ndf3 {[%clk 0:02:33.8]} 20... Nxb2 {[%clk
0:02:50.8]} 21. Qxb5 {[%clk 0:02:33.3]} 21... Rb8 {[%clk 0:02:50.1]} 22. Qc6
{[%clk 0:02:27.2]} 22... Qxc6 {[%clk 0:02:42.5]} 23. Nxc6 {[%clk 0:02:28.1]}
23... Rb6 {[%clk 0:02:39.2]} 24. Nfe5 {[%clk 0:02:25.6]} 24... Re8 {[%clk
0:02:16.8]} 25. Nb4 {[%clk 0:02:18.3]} 25... Ne4 {[%clk 0:02:13.2]} 26. Ra2
{[%clk 0:02:08.6]} 26... f6 {[%clk 0:01:18.8]} 27. Nd7 {[%clk 0:01:23.6]} 27...
Rb7 {[%clk 0:01:09.1]} 28. Rxe4 {[%clk 0:00:59]} 28... Rxd7 {[%clk 0:01:04.8]}
29. Re2 {[%clk 0:00:57]} 29... Nc4 {[%clk 0:01:04.7]} 30. Ra6 {[%clk 0:00:56.9]}
30... Kf7 {[%clk 0:00:58.7]} 31. g4 {[%clk 0:00:54.7]} 31... Nd6 {[%clk
0:00:57.5]} 32. Nd3 {[%clk 0:00:41.6]} 32... Ne4 {[%clk 0:00:53.7]} 33. Rc6
{[%clk 0:00:41.7]} 33... Ra8 {[%clk 0:00:51.5]} 34. Nc5 {[%clk 0:00:36.5]} 34...
Nxc5 {[%clk 0:00:51.4]} 35. Rxc5 {[%clk 0:00:37.4]} 35... Ra1+ {[%clk
0:00:49.6]} 36. Kg2 {[%clk 0:00:37]} 36... Ra6 {[%clk 0:00:46.4]} 37. Kf3 {[%clk
0:00:34.8]} 37... Rb7 {[%clk 0:00:40]} 38. f5 {[%clk 0:00:32.2]} 38... gxf5
{[%clk 0:00:34.4]} 39. gxf5 {[%clk 0:00:33.1]} 39... exf5 {[%clk 0:00:34]} 40.
Rxd5 {[%clk 0:00:32.8]} 40... Rc7 {[%clk 0:00:19.4]} 41. Re3 {[%clk 0:00:29.4]}
41... Ra3 {[%clk 0:00:19.1]} 42. Rxf5 {[%clk 0:00:18.3]} 42... Rcxc3 {[%clk
0:00:17.6]} 43. Rxc3 {[%clk 0:00:18.8]} 43... Rxc3+ {[%clk 0:00:18.5]} 44. Kg4
{[%clk 0:00:18.8]} 44... Rd3 {[%clk 0:00:18.2]} 45. Rd5 {[%clk 0:00:18.2]} 45...
Ke6 {[%clk 0:00:16]} 46. Rd8 {[%clk 0:00:17.9]} 46... g6 {[%clk 0:00:16.4]} 47.
h4 {[%clk 0:00:15.1]} 47... Rd1 {[%clk 0:00:15.6]} 48. Re8+ {[%clk 0:00:12.7]}
48... Kf7 {[%clk 0:00:14.5]} 49. Rd8 {[%clk 0:00:12.9]} 49... Rd3 {[%clk
0:00:14.5]} 50. d5 {[%clk 0:00:10.2]} 50... Ke7 {[%clk 0:00:13.6]} 51. Rg8
{[%clk 0:00:10.5]} 51... Rxd5 {[%clk 0:00:12.2]} 52. Rxg6 {[%clk 0:00:10.5]}
52... Rd4+ {[%clk 0:00:13.1]} 53. Kh5 {[%clk 0:00:10.3]} 53... Kf7 {[%clk
0:00:12.4]} 54. Rg1 {[%clk 0:00:10.7]} 54... Rd5+ {[%clk 0:00:12.4]} 55. Kh6
{[%clk 0:00:10.4]} 55... Rf5 {[%clk 0:00:11.6]} 56. h5 {[%clk 0:00:10.4]} 56...
Rf2 {[%clk 0:00:11.2]} 57. Rg7+ {[%clk 0:00:10.8]} 57... Kf8 {[%clk 0:00:09.3]}
58. Ra7 {[%clk 0:00:11.4]} 58... Rg2 {[%clk 0:00:08.6]} 59. Kh7 {[%clk
0:00:09.5]} 59... f5 {[%clk 0:00:08.4]} 60. Ra5 {[%clk 0:00:07.1]} 60... Rf2
{[%clk 0:00:05]} 61. Kg6 {[%clk 0:00:06.3]} 61... Ke7 {[%clk 0:00:04.7]} 62.
Re5+ {[%clk 0:00:02.1]} 62... Kf8 {[%clk 0:00:01.4]} 63. Kf6 {[%clk 0:00:02.7]}
1-0

[Event "Late-Titled-Tuesday-Blitz-March-19-2024"]
[Site "Chess.com"]
[Date "2024.03.19"]
[Round "9"]
[White "SultaiC"]
[Black "Zq1"]
[Result "0-1"]
[WhiteElo "2505"]
[BlackElo "2632"]
[TimeControl "180+1"]
[EndTime "15:44:44 PDT"]
[Termination "Zq1 won by checkmate"]

1. e4 {[%clk 0:02:56.3]} 1... c5 {[%clk 0:02:59.5]} 2. Nf3 {[%clk 0:02:51.8]}
2... d6 {[%clk 0:02:59.3]} 3. d4 {[%clk 0:02:49.2]} 3... cxd4 {[%clk 0:02:59.4]}
4. Nxd4 {[%clk 0:02:50.1]} 4... Nf6 {[%clk 0:02:59.1]} 5. Nc3 {[%clk 0:02:50.8]}
5... Nc6 {[%clk 0:02:59.3]} 6. Bc4 {[%clk 0:02:49.8]} 6... Bd7 {[%clk
0:02:58.9]} 7. O-O {[%clk 0:02:46.1]} 7... g6 {[%clk 0:02:56.1]} 8. Re1 {[%clk
0:02:39.2]} 8... Bg7 {[%clk 0:02:54.8]} 9. h3 {[%clk 0:02:30.6]} 9... Nxd4
{[%clk 0:02:52.1]} 10. Qxd4 {[%clk 0:02:28]} 10... O-O {[%clk 0:02:51.5]} 11.
Be3 {[%clk 0:02:23.8]} 11... Bc6 {[%clk 0:02:49.8]} 12. f3 {[%clk 0:02:19.6]}
12... Nxe4 {[%clk 0:02:43.1]} 13. Qd3 {[%clk 0:02:09.2]} 13... Nxc3 {[%clk
0:02:41.5]} 14. bxc3 {[%clk 0:02:10.1]} 14... d5 {[%clk 0:02:36.2]} 15. Bb3
{[%clk 0:02:10.3]} 15... e6 {[%clk 0:02:33.9]} 16. Rad1 {[%clk 0:02:09.6]} 16...
b5 {[%clk 0:02:32.4]} 17. Bc5 {[%clk 0:02:09.3]} 17... Re8 {[%clk 0:02:31]} 18.
Bd4 {[%clk 0:02:09.7]} 18... a5 {[%clk 0:02:21.7]} 19. a3 {[%clk 0:02:05.1]}
19... a4 {[%clk 0:02:19.5]} 20. Ba2 {[%clk 0:02:03.6]} 20... Qe7 {[%clk
0:02:12.5]} 21. Qf1 {[%clk 0:01:53.9]} 21... Qxa3 {[%clk 0:02:03.2]} 22. Ra1
{[%clk 0:01:52.8]} 22... Qd6 {[%clk 0:01:56.6]} 23. Qf2 {[%clk 0:01:51.7]} 23...
Rac8 {[%clk 0:01:54.3]} 24. Red1 {[%clk 0:01:50.9]} 24... Bd7 {[%clk 0:01:51]}
25. Rab1 {[%clk 0:01:49.8]} 25... Bxd4 {[%clk 0:01:43.4]} 26. Qxd4 {[%clk
0:01:49.8]} 26... Qc5 {[%clk 0:01:42.8]} 27. Rd2 {[%clk 0:01:42.4]} 27... Qxc3
{[%clk 0:01:36.7]} 28. Qf2 {[%clk 0:01:40.5]} 28... Qc5 {[%clk 0:01:35.6]} 29.
Kf1 {[%clk 0:01:33.2]} 29... Qxf2+ {[%clk 0:01:34.6]} 30. Kxf2 {[%clk
0:01:34.1]} 30... Rc3 {[%clk 0:01:34]} 31. Ke2 {[%clk 0:01:28.9]} 31... Rec8
{[%clk 0:01:32.7]} 32. Kd1 {[%clk 0:01:28.2]} 32... g5 {[%clk 0:01:31]} 33. Rb4
{[%clk 0:01:24.2]} 33... Kg7 {[%clk 0:01:30.2]} 34. Kc1 {[%clk 0:01:03]} 34...
Re3 {[%clk 0:01:25.8]} 35. Kd1 {[%clk 0:00:55.9]} 35... h6 {[%clk 0:01:23.7]}
36. h4 {[%clk 0:00:54.3]} 36... Kf6 {[%clk 0:01:21.1]} 37. Rg4 {[%clk 0:00:44]}
37... Ra3 {[%clk 0:01:16.6]} 38. Bb1 {[%clk 0:00:27.6]} 38... Ra1 {[%clk
0:01:15.5]} 39. Rb4 {[%clk 0:00:19.4]} 39... a3 {[%clk 0:01:14.9]} 40. c3 {[%clk
0:00:14.2]} 40... Ra8 {[%clk 0:01:03.7]} 41. Ra2 {[%clk 0:00:11.9]} 41... Rxa2
{[%clk 0:01:02.1]} 42. Bxa2 {[%clk 0:00:12.8]} 42... Ra4 {[%clk 0:00:59.8]} 43.
hxg5+ {[%clk 0:00:10.1]} 43... hxg5 {[%clk 0:00:56.2]} 44. Rb1 {[%clk 0:00:11]}
44... Rh4 {[%clk 0:00:50.3]} 45. Ke2 {[%clk 0:00:11]} 45... Ra4 {[%clk
0:00:46.5]} 46. g4 {[%clk 0:00:09.3]} 46... Ke5 {[%clk 0:00:46.3]} 47. Ke3
{[%clk 0:00:06.9]} 47... Ra8 {[%clk 0:00:43.3]} 48. Re1 {[%clk 0:00:07.3]} 48...
Kd6 {[%clk 0:00:41.5]} 49. Kd4 {[%clk 0:00:07.4]} 49... Ra4+ {[%clk 0:00:40.4]}
50. Ke3 {[%clk 0:00:08.2]} 50... b4 {[%clk 0:00:39.9]} 51. Bb3 {[%clk
0:00:08.1]} 51... bxc3 {[%clk 0:00:27.7]} 52. Bxa4 {[%clk 0:00:08.3]} 52... Bxa4
{[%clk 0:00:27]} 53. Ra1 {[%clk 0:00:08.4]} 53... e5 {[%clk 0:00:24.2]} 54. Rxa3
{[%clk 0:00:08.4]} 54... d4+ {[%clk 0:00:24]} 55. Kd3 {[%clk 0:00:09.1]} 55...
Bb5+ {[%clk 0:00:23.1]} 56. Kc2 {[%clk 0:00:08.9]} 56... Kc5 {[%clk 0:00:20]}
57. Ra8 {[%clk 0:00:09.2]} 57... Kb4 {[%clk 0:00:17.6]} 58. Rb8 {[%clk
0:00:09.3]} 58... d3+ {[%clk 0:00:17.1]} 59. Kc1 {[%clk 0:00:09.9]} 59... Kc5
{[%clk 0:00:15.1]} 60. Rc8+ {[%clk 0:00:09.8]} 60... Kd4 {[%clk 0:00:15]} 61.
Kd1 {[%clk 0:00:08.9]} 61... Ba4+ {[%clk 0:00:13.7]} 62. Ke1 {[%clk 0:00:09.2]}
62... d2+ {[%clk 0:00:13.9]} 63. Kf2 {[%clk 0:00:09.9]} 63... d1=Q {[%clk
0:00:13.8]} 64. Rd8+ {[%clk 0:00:10.8]} 64... Kc5 {[%clk 0:00:13.3]} 65. Rxd1
{[%clk 0:00:11.3]} 65... Bxd1 {[%clk 0:00:13.1]} 66. f4 {[%clk 0:00:12]} 66...
exf4 {[%clk 0:00:12.5]} 67. Kg2 {[%clk 0:00:12.6]} 67... Bxg4 {[%clk 0:00:12.6]}
68. Kh2 {[%clk 0:00:13.4]} 68... Kd4 {[%clk 0:00:12.1]} 69. Kg2 {[%clk
0:00:14.3]} 69... Ke3 {[%clk 0:00:12.1]} 70. Kf1 {[%clk 0:00:15.2]} 70... c2
{[%clk 0:00:10.4]} 71. Kg2 {[%clk 0:00:16.1]} 71... c1=Q {[%clk 0:00:09.1]} 72.
Kh2 {[%clk 0:00:17]} 72... Qd2+ {[%clk 0:00:08.8]} 73. Kg1 {[%clk 0:00:16]}
73... Qe1+ {[%clk 0:00:07.6]} 74. Kh2 {[%clk 0:00:16.5]} 74... Qf2+ {[%clk
0:00:07.5]} 75. Kh1 {[%clk 0:00:17.3]} 75... Bf3# {[%clk 0:00:07.7]} 0-1

[Event "Late-Titled-Tuesday-Blitz-March-19-2024"]
[Site "Chess.com"]
[Date "2024.03.19"]
[Round "9"]
[White "Fonsofan"]
[Black "ckgchess"]
[Result "0-1"]
[WhiteElo "2749"]
[BlackElo "2936"]
[TimeControl "180+1"]
[EndTime "15:44:46 PDT"]
[Termination "ckgchess won on time"]

1. b4 {[%clk 0:02:57.5]} 1... Nf6 {[%clk 0:02:57.2]} 2. Bb2 {[%clk 0:02:52.6]}
2... g6 {[%clk 0:02:56.9]} 3. Nf3 {[%clk 0:02:52.2]} 3... Bg7 {[%clk 0:02:57.1]}
4. c4 {[%clk 0:02:52.7]} 4... O-O {[%clk 0:02:57.5]} 5. g3 {[%clk 0:02:51.6]}
5... d6 {[%clk 0:02:52.7]} 6. d4 {[%clk 0:02:50.9]} 6... e5 {[%clk 0:02:52.5]}
7. dxe5 {[%clk 0:02:50.3]} 7... Ng4 {[%clk 0:02:52.6]} 8. Bg2 {[%clk 0:02:47.7]}
8... Nc6 {[%clk 0:02:52.4]} 9. a3 {[%clk 0:02:44.9]} 9... Ngxe5 {[%clk
0:02:48.2]} 10. Nxe5 {[%clk 0:02:44.1]} 10... Nxe5 {[%clk 0:02:48.4]} 11. Qc1
{[%clk 0:02:30.6]} 11... Bg4 {[%clk 0:02:23.4]} 12. h3 {[%clk 0:02:14.5]} 12...
Bxe2 {[%clk 0:02:23.6]} 13. Kxe2 {[%clk 0:02:12.3]} 13... Re8 {[%clk 0:02:24.1]}
14. Kd2 {[%clk 0:01:44.8]} 14... Qf6 {[%clk 0:02:19.1]} 15. Kc2 {[%clk
0:01:28.7]} 15... Qf5+ {[%clk 0:01:28.4]} 16. Kb3 {[%clk 0:01:28.4]} 16... Nd3
{[%clk 0:01:29.1]} 17. Qc2 {[%clk 0:01:08]} 17... Bxb2 {[%clk 0:01:28.9]} 18.
Ra2 {[%clk 0:01:07.6]} 18... a5 {[%clk 0:01:29]} 19. Rxb2 {[%clk 0:01:03]} 19...
axb4 {[%clk 0:01:16]} 20. axb4 {[%clk 0:01:02.6]} 20... Nxb2 {[%clk 0:00:45.4]}
21. Qxb2 {[%clk 0:00:32.4]} 21... b5 {[%clk 0:00:24.1]} 22. Rc1 {[%clk
0:00:32.8]} 22... bxc4+ {[%clk 0:00:23]} 23. Rxc4 {[%clk 0:00:33.7]} 23... Rab8
{[%clk 0:00:20.9]} 24. Nc3 {[%clk 0:00:31.2]} 24... c5 {[%clk 0:00:19.6]} 25.
Nd5 {[%clk 0:00:29.7]} 25... Re5 {[%clk 0:00:16.4]} 26. Qd2 {[%clk 0:00:21.5]}
26... cxb4 {[%clk 0:00:11.3]} 27. Kb2 {[%clk 0:00:19.9]} 27... b3 {[%clk
0:00:10.7]} 28. f4 {[%clk 0:00:19]} 28... Ree8 {[%clk 0:00:08.7]} 29. g4 {[%clk
0:00:17.7]} 29... Qe6 {[%clk 0:00:08.1]} 30. Re4 {[%clk 0:00:14.2]} 30... Rec8
{[%clk 0:00:02.8]} 31. Rxe6 {[%clk 0:00:13.1]} 31... Rc2+ {[%clk 0:00:03.2]} 32.
Qxc2 {[%clk 0:00:13]} 32... bxc2+ {[%clk 0:00:04.1]} 33. Kxc2 {[%clk 0:00:12.8]}
33... fxe6 {[%clk 0:00:05]} 34. Nf6+ {[%clk 0:00:06]} 34... Kg7 {[%clk
0:00:03.9]} 35. g5 {[%clk 0:00:06.1]} 35... Rb4 {[%clk 0:00:03.3]} 36. Ne8+
{[%clk 0:00:03]} 36... Kf8 {[%clk 0:00:04]} 37. Nxd6 {[%clk 0:00:03.8]} 37...
Rxf4 {[%clk 0:00:04.7]} 38. Kd3 {[%clk 0:00:03.7]} 38... Ke7 {[%clk 0:00:04.4]}
39. Ne4 {[%clk 0:00:03.7]} 39... Rf8 {[%clk 0:00:04.2]} 40. Ke3 {[%clk
0:00:04.2]} 40... Ra8 {[%clk 0:00:03.8]} 41. Bf3 {[%clk 0:00:04.6]} 41... Ra3+
{[%clk 0:00:04.7]} 42. Kf4 {[%clk 0:00:05.1]} 42... Ra5 {[%clk 0:00:05.6]} 43.
h4 {[%clk 0:00:05.1]} 43... Rf5+ {[%clk 0:00:05.8]} 44. Ke3 {[%clk 0:00:05]}
44... Ra5 {[%clk 0:00:05.5]} 45. Bg4 {[%clk 0:00:05.4]} 45... Ra3+ {[%clk
0:00:05.6]} 46. Kf4 {[%clk 0:00:06]} 46... Ra4 {[%clk 0:00:06.5]} 47. Ke5 {[%clk
0:00:05.9]} 47... Ra5+ {[%clk 0:00:07]} 48. Kf4 {[%clk 0:00:06.5]} 48... Ra4
{[%clk 0:00:07.6]} 49. Bf3 {[%clk 0:00:06.6]} 49... Rb4 {[%clk 0:00:07.7]} 50.
Kg3 {[%clk 0:00:06.4]} 50... Rb3 {[%clk 0:00:07.2]} 51. Nf6 {[%clk 0:00:06.7]}
51... h5 {[%clk 0:00:07.4]} 52. Ne4 {[%clk 0:00:04.5]} 52... e5 {[%clk
0:00:06.8]} 53. Nc5 {[%clk 0:00:03.8]} 53... Ra3 {[%clk 0:00:06.4]} 54. Ne4
{[%clk 0:00:03.6]} 54... Ke6 {[%clk 0:00:06.6]} 55. Kf2 {[%clk 0:00:02.7]} 55...
Kf5 {[%clk 0:00:07.2]} 56. Ng3+ {[%clk 0:00:03.3]} 56... Kf4 {[%clk 0:00:04.4]}
57. Ne2+ {[%clk 0:00:03.8]} 57... Kf5 {[%clk 0:00:05.1]} 58. Ng3+ {[%clk
0:00:03.3]} 58... Ke6 {[%clk 0:00:05.2]} 59. Be4 {[%clk 0:00:03]} 59... Kf7
{[%clk 0:00:05.2]} 60. Kg2 {[%clk 0:00:01.6]} 60... Ra2+ {[%clk 0:00:04.4]} 61.
Kg1 {[%clk 0:00:02]} 61... Ra3 {[%clk 0:00:05.3]} 62. Kg2 {[%clk 0:00:01.1]}
62... Ra2+ {[%clk 0:00:05.8]} 63. Kh3 {[%clk 0:00:01.6]} 63... Ra3 {[%clk
0:00:06.1]} 64. Bd5+ {[%clk 0:00:01.9]} 64... Ke7 {[%clk 0:00:05.9]} 65. Be4
{[%clk 0:00:02.8]} 65... Ra6 {[%clk 0:00:04.5]} 66. Kh2 {[%clk 0:00:02.7]} 66...
Kf7 {[%clk 0:00:04.5]} 67. Kg2 {[%clk 0:00:02.8]} 67... Ra4 {[%clk 0:00:04.2]}
68. Kf2 {[%clk 0:00:02.1]} 68... Kg7 {[%clk 0:00:04]} 69. Ke3 {[%clk 0:00:02.5]}
69... Ra3+ {[%clk 0:00:04.5]} 70. Ke2 {[%clk 0:00:02.6]} 70... Rxg3 {[%clk
0:00:04.5]} 0-1

[Event "Late-Titled-Tuesday-Blitz-March-19-2024"]
[Site "Chess.com"]
[Date "2024.03.19"]
[Round "9"]
[White "GHANDEEVAM2003"]
[Black "mishanick"]
[Result "1/2-1/2"]
[WhiteElo "3051"]
[BlackElo "3129"]
[TimeControl "180+1"]
[EndTime "15:44:57 PDT"]
[Termination "Game drawn by repetition"]

1. Nf3 {[%clk 0:02:55.7]} 1... d5 {[%clk 0:02:59.9]} 2. e3 {[%clk 0:02:55.5]}
2... Nf6 {[%clk 0:02:59.9]} 3. c4 {[%clk 0:02:56.2]} 3... e6 {[%clk 0:03:00.4]}
4. b3 {[%clk 0:02:56.7]} 4... Bd6 {[%clk 0:03:01]} 5. Bb2 {[%clk 0:02:57.4]}
5... O-O {[%clk 0:03:01.7]} 6. Nc3 {[%clk 0:02:58.1]} 6... b6 {[%clk 0:03:02.3]}
7. d4 {[%clk 0:02:58.5]} 7... Bb7 {[%clk 0:03:02.6]} 8. Qc2 {[%clk 0:02:59.2]}
8... a6 {[%clk 0:03:03.1]} 9. cxd5 {[%clk 0:02:58.9]} 9... exd5 {[%clk
0:03:03.3]} 10. Bd3 {[%clk 0:02:59.1]} 10... Nbd7 {[%clk 0:03:02.9]} 11. Ne2
{[%clk 0:02:52.5]} 11... Re8 {[%clk 0:03:01.9]} 12. Ng3 {[%clk 0:02:52.3]} 12...
Ne4 {[%clk 0:03:02]} 13. Rc1 {[%clk 0:02:49.4]} 13... Bb4+ {[%clk 0:02:59.5]}
14. Ke2 {[%clk 0:02:48]} 14... Rc8 {[%clk 0:02:57.4]} 15. Ne5 {[%clk 0:02:45.1]}
15... Bd6 {[%clk 0:02:24.2]} 16. Nxe4 {[%clk 0:02:23.6]} 16... dxe4 {[%clk
0:01:14.4]} 17. Bxe4 {[%clk 0:02:24.5]} 17... Bxe4 {[%clk 0:01:06.9]} 18. Qxe4
{[%clk 0:02:25.4]} 18... Bxe5 {[%clk 0:00:55.7]} 19. dxe5 {[%clk 0:02:26.3]}
19... Nc5 {[%clk 0:00:56.3]} 20. Qc4 {[%clk 0:02:12.4]} 20... Qg5 {[%clk
0:00:56.1]} 21. h4 {[%clk 0:01:55.9]} 21... Qxg2 {[%clk 0:00:39.8]} 22. Rhg1
{[%clk 0:01:56.3]} 22... Qe4 {[%clk 0:00:39.8]} 23. Qxe4 {[%clk 0:01:56.2]}
23... Nxe4 {[%clk 0:00:40.7]} 24. b4 {[%clk 0:01:56.9]} 24... Red8 {[%clk
0:00:33.6]} 25. Rc2 {[%clk 0:01:57]} 25... c5 {[%clk 0:00:29.6]} 26. e6 {[%clk
0:01:32.3]} 26... f6 {[%clk 0:00:29.5]} 27. e7 {[%clk 0:01:23.3]} 27... Rd7
{[%clk 0:00:13.3]} 28. f3 {[%clk 0:01:22.4]} 28... Nd6 {[%clk 0:00:13.9]} 29.
Bxf6 {[%clk 0:01:18.3]} 29... Ne8 {[%clk 0:00:14.5]} 30. Bd4 {[%clk 0:01:13.5]}
30... Rdc7 {[%clk 0:00:09.6]} 31. bxc5 {[%clk 0:01:09.7]} 31... bxc5 {[%clk
0:00:10.5]} 32. Bb2 {[%clk 0:00:55.1]} 32... Rxe7 {[%clk 0:00:11]} 33. Rgc1
{[%clk 0:00:55.8]} 33... Rec7 {[%clk 0:00:11.3]} 34. Be5 {[%clk 0:00:53.1]}
34... Rc6 {[%clk 0:00:11.3]} 35. Rc4 {[%clk 0:00:52]} 35... Nf6 {[%clk
0:00:05.1]} 36. Bxf6 {[%clk 0:00:49.9]} 36... gxf6 {[%clk 0:00:05.2]} 37. Rg1+
{[%clk 0:00:45.2]} 37... Kf7 {[%clk 0:00:05.9]} 38. Rcg4 {[%clk 0:00:45.5]}
38... Ke6 {[%clk 0:00:06.5]} 39. Rg7 {[%clk 0:00:45.2]} 39... R8c7 {[%clk
0:00:06.5]} 40. Kd3 {[%clk 0:00:44.1]} 40... c4+ {[%clk 0:00:05.5]} 41. Kc3
{[%clk 0:00:44.7]} 41... Kf5 {[%clk 0:00:05.6]} 42. h5 {[%clk 0:00:44]} 42... h6
{[%clk 0:00:03.4]} 43. R7g4 {[%clk 0:00:27.8]} 43... Ke6 {[%clk 0:00:02.2]} 44.
Re4+ {[%clk 0:00:27.6]} 44... Kf7 {[%clk 0:00:02.6]} 45. Rg6 {[%clk 0:00:28.3]}
45... Re7 {[%clk 0:00:01.7]} 46. Rxe7+ {[%clk 0:00:26.5]} 46... Kxe7 {[%clk
0:00:02.6]} 47. Rxh6 {[%clk 0:00:27.4]} 47... Rc5 {[%clk 0:00:03.2]} 48. f4
{[%clk 0:00:23.4]} 48... Ra5 {[%clk 0:00:02.8]} 49. Kxc4 {[%clk 0:00:19.5]}
49... Rxa2 {[%clk 0:00:03.4]} 50. f5 {[%clk 0:00:20]} 50... Ra5 {[%clk
0:00:02.3]} 51. e4 {[%clk 0:00:19]} 51... Kf7 {[%clk 0:00:02.7]} 52. Rh7+ {[%clk
0:00:18.2]} 52... Kg8 {[%clk 0:00:03.2]} 53. Ra7 {[%clk 0:00:18.9]} 53... Re5
{[%clk 0:00:03.1]} 54. Kd4 {[%clk 0:00:16.4]} 54... a5 {[%clk 0:00:03.8]} 55. h6
{[%clk 0:00:16.9]} 55... Rb5 {[%clk 0:00:04.2]} 56. Ra6 {[%clk 0:00:13.6]} 56...
Rb4+ {[%clk 0:00:03.9]} 57. Kd5 {[%clk 0:00:11.2]} 57... Rb5+ {[%clk 0:00:03.6]}
58. Kd4 {[%clk 0:00:05.9]} 58... Rb4+ {[%clk 0:00:04]} 59. Ke3 {[%clk
0:00:06.6]} 59... Rb3+ {[%clk 0:00:04.3]} 60. Kf4 {[%clk 0:00:06.8]} 60... Kf7
{[%clk 0:00:04.9]} 61. Rxa5 {[%clk 0:00:06.6]} 61... Rh3 {[%clk 0:00:05.2]} 62.
Ra7+ {[%clk 0:00:06.6]} 62... Kg8 {[%clk 0:00:05.5]} 63. Rg7+ {[%clk 0:00:06.4]}
63... Kf8 {[%clk 0:00:05.2]} 64. Rg6 {[%clk 0:00:07.3]} 64... Kf7 {[%clk
0:00:05.6]} 65. Kg4 {[%clk 0:00:06.5]} 65... Rh1 {[%clk 0:00:05.8]} 66. Kf3
{[%clk 0:00:07.2]} 66... Rh3+ {[%clk 0:00:06]} 67. Kg2 {[%clk 0:00:06.7]} 67...
Rh4 {[%clk 0:00:06]} 68. Kf3 {[%clk 0:00:06.2]} 68... Rh3+ {[%clk 0:00:06.1]}
69. Ke2 {[%clk 0:00:06.9]} 69... Ke7 {[%clk 0:00:01.6]} 70. Kd2 {[%clk
0:00:06.7]} 70... Kf7 {[%clk 0:00:02.2]} 71. Ke1 {[%clk 0:00:06.8]} 71... Ke7
{[%clk 0:00:02.6]} 72. Kf2 {[%clk 0:00:07.3]} 72... Kf7 {[%clk 0:00:03.2]} 73.
Kg2 {[%clk 0:00:08]} 73... Rh4 {[%clk 0:00:03]} 74. Kg3 {[%clk 0:00:08]} 74...
Rh5 {[%clk 0:00:03.2]} 75. Kf4 {[%clk 0:00:08.3]} 75... Rh3 {[%clk 0:00:03.5]}
76. Kg4 {[%clk 0:00:08.5]} 76... Rh1 {[%clk 0:00:03.8]} 77. Kf3 {[%clk
0:00:08.9]} 77... Rh3+ {[%clk 0:00:04]} 1/2-1/2